fUSD/lending_fUSD_20240521
["ID","MTS","AMOUNT","RATE_DAILY","PERIOD"]
[327613653,1716252669797,-1107.17,0.00038904,6]
[327613654,1716252669806,-1835.58,0.00038904,6]
[327613655,1716252669816,-7435.54,0.00038904,6]
[327613656,1716252669826,-1223.4,0.00038904,6]
[327613657,1716252669835,-500.0,0.00038904,6]
[327613658,1716252669845,-500.0,0.00038904,6]
[327613659,1716252669855,-500.0,0.00038904,6]
[327613660,1716252669864,-556.69,0.00038904,6]
[327613661,1716252669875,-2150.72,0.00038904,6]
[327613662,1716252669885,-151.0,0.00038904,14]
[327613663,1716252669896,-1029.24,0.00038904,6]
[327613664,1716252669905,-2065.57,0.00038904,6]
[327613665,1716252669919,-3118.19,0.00038904,6]
[327613666,1716252669929,-500.0,0.00038904,6]
[327613667,1716252669938,-1140.35,0.00038904,6]
[327613668,1716252669948,-500.0,0.00038904,6]
[327613669,1716252669957,-537.44,0.00038904,6]
[327613670,1716252669967,-1466.98,0.00038904,6]
[327613671,1716252669977,-964.27,0.00038904,6]
[327613672,1716252669987,-7732.89,0.00038904,6]
[327613673,1716252669996,-2199.13,0.00038904,6]
[327613674,1716252670006,-2359.79,0.00038904,6]
[327613675,1716252670016,-500.0,0.00038904,6]
[327613676,1716252670026,-928.16,0.00038904,6]
[327613677,1716252670035,-3254.02,0.00038904,6]
[327613678,1716252670045,-842.17,0.00038904,6]
[327613679,1716252670054,-801.81,0.00038904,6]
[327613680,1716252670064,-2293.93,0.00038904,6]
[327613681,1716252670073,-2439.44,0.00038904,6]
[327613682,1716252670083,-2146.64,0.00038904,6]
[327613683,1716252670092,-1529.95,0.00038904,6]
[327613684,1716252670101,-6868.85,0.00038904,6]
[327613685,1716252670110,-2351.85,0.00038904,6]
[327613686,1716252670120,-1240.29,0.00038904,6]
[327613687,1716252670129,-799.42,0.00038904,6]
[327613688,1716252670138,-777.22,0.00038904,6]
[327613689,1716252670147,-500.0,0.00038904,6]
[327613690,1716252670157,-2206.25,0.00038904,6]
[327613691,1716252670169,-1444.41,0.00038904,6]
[327613692,1716252670179,-500.0,0.00038904,6]
[327613693,1716252670194,-628.59,0.00038904,6]
[327613694,1716252670205,-3501.83,0.00038904,6]
[327613695,1716252670216,-1687.81,0.00038904,6]
[327613696,1716252670226,-1223.26,0.00038904,6]
[327613697,1716252670237,-500.0,0.00038904,6]
[327613698,1716252670247,-500.0,0.00038904,6]
[327613699,1716252670257,-733.43,0.00038904,6]
[327613700,1716252670267,-4544.0,0.00038904,6]
[327613701,1716252670278,-500.0,0.00038904,6]
[327613702,1716252670288,-3118.6,0.00038904,6]
[327613703,1716252670299,-1098.51,0.00038904,6]
[327613704,1716252670310,-2995.64,0.00038904,6]
[327613705,1716252670322,-151.0,0.00038904,14]
[327613706,1716252670334,-519.83,0.00038904,6]
[327613707,1716252670345,-987.19,0.00038904,6]
[327613708,1716252670356,-500.0,0.00038904,6]
[327613709,1716252670367,-556.86662445,0.00038904,6]
[327613710,1716252670378,-4038.9,0.00038904,6]
[327613711,1716252670390,-2236.69,0.00038904,6]
[327613712,1716252670401,-2606.35,0.00038904,6]
[327613713,1716252670414,-500.0,0.00038904,6]
[327613714,1716252670424,-500.0,0.00038904,6]
[327613715,1716252670435,-1362.0,0.00038904,6]
[327613716,1716252670445,-4358.05,0.00038904,6]
[327613717,1716252670456,-1588.52,0.00038904,6]
[327613718,1716252670467,-807.16,0.00038904,6]
[327613719,1716252670478,-500.0,0.00038904,6]
[327613720,1716252670488,-778.75,0.00038904,6]
[327613721,1716252670498,-500.0,0.00038904,6]
[327613722,1716252670509,-536.48,0.00038904,6]
[327613723,1716252670520,-2731.56,0.00038904,6]
[327613724,1716252670530,-500.0,0.00038904,6]
[327613725,1716252670541,-3640.01,0.00038904,6]
[327613726,1716252670552,-6717.54,0.00038904,6]
[327613727,1716252670563,-10905.46,0.00038904,6]
[327613728,1716252670574,-500.0,0.00038904,6]
[327613729,1716252670585,-500.0,0.00038904,6]
[327613730,1716252670596,-605.33,0.00038904,6]
[327613731,1716252670606,-1044.34,0.00038904,6]
[327613732,1716252670617,-551.75,0.00038904,6]
[327613733,1716252670626,-3780.64,0.00038904,6]
[327613734,1716252670636,-2700.0,0.00039,30]
[327613735,1716252670648,-500.0,0.00039,120]
[327613736,1716252670658,-200.0,0.00039001,50]
[327613737,1716252670671,-256.66979594,0.00039057,3]
[327613738,1716252670682,-3000.0,0.0003906,2]
[327613739,1716252670692,-510.73,0.000391,3]
[327613740,1716252670702,-510.73,0.000391,3]
[327613741,1716252670713,-510.73,0.000391,3]
[327613742,1716252670724,-510.73,0.000391,3]
[327613743,1716252670734,-510.73,0.000391,3]
[327613744,1716252670745,-510.73,0.000391,3]
[327613745,1716252670755,-510.73,0.000391,3]
[327613746,1716252670766,-510.73,0.000391,3]
[327613747,1716252670777,-510.73,0.000391,3]
[327613748,1716252670787,-510.73,0.000391,3]
[327613749,1716252670798,-510.73,0.000391,3]
[327613750,1716252670808,-510.73,0.000391,3]
[327613751,1716252670819,-510.73,0.000391,3]
[327613752,1716252670829,-510.73,0.000391,3]
[327613753,1716252670840,-510.73,0.000391,3]
[327613754,1716252670851,-510.73,0.000391,3]
[327613755,1716252670862,-510.73,0.000391,3]
[327613756,1716252670872,-510.73,0.000391,3]
[327613757,1716252670883,-510.73,0.000391,3]
[327613758,1716252670894,-510.73,0.000391,3]
[327613759,1716252670904,-200.0,0.00039136,30]
[327613760,1716252670915,-1000.0,0.00039136,40]
[327613761,1716252670925,-500.0,0.00039136,20]
[327613762,1716252670935,-200.0,0.00039136,20]
[327613763,1716252670946,-157.052109,0.00039148,42]
[327613764,1716252670956,-150.0,0.00039177,2]
[327613765,1716252670967,-669.2,0.00039178,6]
[327613766,1716252670977,-500.0,0.00039178,6]
[327613767,1716252670987,-500.0,0.00039178,6]
[327613768,1716252670998,-975.26,0.00039178,6]
[327613769,1716252671008,-1115.3,0.00039178,6]
[327613770,1716252671018,-508.18,0.00039178,6]
[327613771,1716252671028,-500.0,0.00039178,6]
[327613772,1716252671038,-617.02,0.00039178,6]
[327613773,1716252671048,-500.0,0.00039178,6]
[327613774,1716252671058,-500.0,0.00039178,6]
[327613775,1716252671068,-597.74,0.00039178,6]
[327613776,1716252671079,-500.0,0.00039178,6]
[327613777,1716252671089,-877.96,0.00039178,6]
[327613778,1716252671099,-573.27,0.00039178,6]
[327613779,1716252671109,-500.0,0.00039178,6]
[327613780,1716252671120,-500.0,0.00039178,6]
[327613781,1716252671130,-500.0,0.00039178,6]
[327613782,1716252671140,-500.0,0.00039178,6]
[327613783,1716252671151,-500.0,0.00039178,6]
[327613784,1716252671161,-500.0,0.00039178,6]
[327613785,1716252671175,-500.0,0.00039178,6]
[327613786,1716252671187,-500.0,0.00039178,6]
[327613787,1716252671197,-515.25701831,0.00039178,6]
[327613788,1716252671207,-500.0,0.00039178,6]
[327613789,1716252671217,-727.14,0.00039178,6]
[327613790,1716252671227,-500.0,0.00039178,6]
[327613791,1716252671238,-500.0,0.00039178,6]
[327613792,1716252671250,-804.0,0.00039178,6]
[327613793,1716252671260,-500.0,0.00039178,6]
[327613794,1716252671271,-1089.85,0.00039178,6]
[327613795,1716252671281,-905.47,0.00039178,6]
[327613796,1716252671291,-518.76,0.00039178,6]
[327613797,1716252671301,-500.0,0.00039178,6]
[327613798,1716252671315,-500.0,0.00039178,6]
[327613799,1716252671325,-500.0,0.00039178,6]
[327613800,1716252671335,-500.0,0.00039178,6]
[327613801,1716252671347,-500.0,0.00039178,6]
[327613802,1716252671357,-1042.83,0.00039178,6]
[327613803,1716252671366,-500.0,0.00039178,6]
[327613804,1716252671376,-1055.94,0.00039178,6]
[327613805,1716252671387,-966.14,0.00039178,6]
[327613806,1716252671397,-739.64,0.00039178,6]
[327613807,1716252671407,-618.53,0.00039178,6]
[327613808,1716252671420,-500.0,0.00039178,6]
[327613809,1716252671430,-696.27,0.00039178,6]
[327613810,1716252671440,-597.97,0.00039178,6]
[327613811,1716252671450,-500.0,0.00039178,6]
[327613812,1716252671461,-500.0,0.00039178,6]
[327613813,1716252671471,-427.94546769,0.00039178,6]
[327613814,1716252671481,-500.0,0.00039178,6]
[327613815,1716252671491,-500.0,0.00039178,6]
[327613816,1716252671501,-794.6,0.00039178,6]
[327613817,1716252671511,-709.0,0.00039178,6]
[327613818,1716252671521,-651.03,0.00039178,6]
[327613819,1716252671531,-500.0,0.00039178,6]
[327613820,1716252671541,-900.56,0.00039178,6]
[327613821,1716252671551,-500.0,0.00039178,6]
[327613822,1716252671561,-520.56,0.00039178,6]
[327613823,1716252671571,-500.0,0.00039178,6]
[327613824,1716252671581,-500.0,0.00039178,6]
[327613825,1716252671591,-500.0,0.00039178,6]
[327613826,1716252671601,-500.0,0.00039178,6]
[327613827,1716252671612,-1011.46,0.00039178,6]
[327613828,1716252671622,-500.0,0.00039178,6]
[327613829,1716252671632,-500.0,0.00039178,6]
[327613830,1716252671642,-1329.44,0.00039178,6]
[327613831,1716252671652,-500.0,0.00039178,6]
[327613832,1716252671662,-700.33,0.00039178,6]
[327613833,1716252671674,-1100.06,0.00039178,6]
[327613834,1716252671684,-1270.41,0.00039178,6]
[327613835,1716252671694,-500.0,0.00039178,6]
[327613836,1716252671704,-1030.12,0.00039178,6]
[327613837,1716252671714,-500.0,0.00039178,6]
[327613838,1716252671723,-500.0,0.00039178,6]
[327613839,1716252671733,-1205.75,0.00039178,6]
[327613840,1716252671743,-500.0,0.00039178,6]
[327613841,1716252671752,-803.05,0.00039178,6]
[327613842,1716252671762,-500.0,0.00039178,6]
[327613843,1716252671771,-500.0,0.00039178,6]
[327613844,1716252671782,-754.43,0.00039178,6]
[327613845,1716252671792,-500.0,0.00039178,6]
[327613846,1716252671802,-500.0,0.00039178,6]
[327613847,1716252671812,-500.0,0.00039178,6]
[327613848,1716252671822,-500.0,0.00039178,6]
[327613849,1716252671832,-688.69,0.00039178,6]
[327613850,1716252671842,-500.0,0.00039178,6]
[327613851,1716252671852,-500.0,0.00039178,6]
[327613852,1716252671862,-533.48,0.00039178,6]
[327613853,1716252671872,-977.91,0.00039178,6]
[327613854,1716252671883,-957.37,0.00039178,6]
[327613855,1716252671893,-1020.45,0.00039178,6]
[327613856,1716252671903,-552.48,0.00039178,6]
[327613857,1716252671912,-589.61,0.00039178,6]
[327613858,1716252671928,-500.0,0.00039178,6]
[327613859,1716252671937,-662.69,0.00039178,6]
[327613860,1716252671947,-688.61,0.00039178,6]
[327613861,1716252671957,-500.0,0.00039178,6]
[327613862,1716252671966,-500.0,0.00039178,6]
[327613863,1716252671976,-500.0,0.00039178,6]
[327613864,1716252671986,-1021.88,0.00039178,6]
[327613865,1716252671996,-551.9,0.00039178,6]
[327613866,1716252672006,-956.36,0.00039178,6]
[327613867,1716252672015,-622.61,0.00039178,6]
[327613868,1716252672026,-761.73,0.00039178,6]
[327613869,1716252672035,-500.0,0.00039178,6]
[327613870,1716252672045,-500.0,0.00039178,6]
[327613871,1716252672057,-500.0,0.00039178,6]
[327613872,1716252672067,-670.36,0.00039178,6]
[327613873,1716252672076,-1116.96,0.00039178,6]
[327613874,1716252672086,-905.96,0.00039178,6]
[327613875,1716252672098,-500.0,0.00039178,6]
[327613876,1716252672108,-500.0,0.00039178,6]
[327613877,1716252672118,-500.0,0.00039178,6]
[327613878,1716252672128,-738.7,0.00039178,6]
[327613879,1716252672140,-775.53,0.00039178,6]
[327613880,1716252672151,-500.0,0.00039178,6]
[327613881,1716252672162,-795.29,0.00039178,6]
[327613882,1716252672176,-500.0,0.00039178,6]
[327613883,1716252672187,-500.0,0.00039178,6]
[327613884,1716252672197,-1666.17,0.00039178,6]
[327613885,1716252672207,-500.0,0.00039178,6]
[327613886,1716252672217,-1229.0,0.00039178,6]
[327613887,1716252672228,-582.58,0.00039178,6]
[327613888,1716252672238,-500.0,0.00039178,6]
[327613889,1716252672247,-849.36,0.00039178,6]
[327613890,1716252672257,-500.0,0.00039178,6]
[327613891,1716252672267,-500.0,0.00039178,6]
[327613892,1716252672277,-500.0,0.00039178,6]
[327613893,1716252672287,-638.05,0.00039178,6]
[327613894,1716252672297,-553.39,0.00039178,6]
[327613895,1716252672308,-532.40138684,0.00039178,6]
[327613896,1716252672318,-1630.15,0.00039178,6]
[327613897,1716252672330,-500.0,0.00039178,6]
[327613898,1716252672340,-1103.03,0.00039178,6]
[327613899,1716252672350,-1050.08,0.00039178,6]
[327613900,1716252672360,-757.53,0.00039178,6]
[327613901,1716252672370,-500.0,0.00039178,6]
[327613902,1716252672380,-500.0,0.00039178,6]
[327613903,1716252672391,-1924.9,0.00039178,6]
[327613904,1716252672401,-853.87,0.00039178,6]
[327613905,1716252672412,-500.0,0.00039178,6]
[327613906,1716252672425,-500.0,0.00039178,6]
[327613907,1716252672436,-829.49,0.00039178,6]
[327613908,1716252672447,-500.0,0.00039178,6]
[327613909,1716252672457,-500.0,0.00039178,6]
[327613910,1716252672469,-220.431088,0.00039178,14]
[327613911,1716252672478,-500.0,0.00039178,6]
[327613912,1716252672489,-680.44,0.00039178,6]
[327613913,1716252672499,-500.0,0.00039178,6]
[327613914,1716252672509,-1167.69,0.00039178,6]
[327613915,1716252672519,-500.0,0.00039178,6]
[327613916,1716252672529,-337.22913422,0.00039178,6]
[327613917,1716252672539,-691.09,0.00039178,6]
[327613918,1716252672549,-500.0,0.00039178,6]
[327613919,1716252672559,-791.46,0.00039178,6]
[327613920,1716252672570,-1096.85,0.00039178,6]
[327613921,1716252672859,-1134.04,0.00039178,6]
[327613922,1716252672916,-571.64850902,0.00039178,6]
[327613923,1716252672926,-500.0,0.00039178,6]
[327613924,1716252672935,-500.0,0.00039178,6]
[327613925,1716252672945,-500.0,0.00039178,6]
[327613926,1716252672954,-1187.98,0.00039178,6]
[327613927,1716252672963,-500.0,0.00039178,6]
[327613928,1716252672973,-514.14,0.00039178,6]
[327613929,1716252672983,-528.29,0.00039178,6]
[327613930,1716252672993,-673.19,0.00039178,6]
[327613931,1716252673002,-500.0,0.00039178,6]
[327613932,1716252673012,-500.0,0.00039178,6]
[327613933,1716252673022,-517.83,0.00039178,6]
[327613934,1716252673031,-1310.01,0.00039178,6]
[327613935,1716252673040,-656.7,0.00039178,6]
[327613936,1716252673049,-480.26399212,0.00039178,6]
[327613937,1716252673059,-1090.24,0.00039178,6]
[327613938,1716252673068,-500.0,0.00039178,6]
[327613939,1716252673077,-810.2,0.00039178,6]
[327613940,1716252673087,-826.75,0.00039178,6]
[327613941,1716252673096,-717.83,0.00039178,6]
[327613942,1716252673105,-500.0,0.00039178,6]
[327613943,1716252673114,-569.89,0.00039178,6]
[327613944,1716252673123,-1365.29,0.00039178,6]
[327613945,1716252673133,-1551.62,0.00039178,6]
[327613946,1716252673142,-500.0,0.00039178,6]
[327613947,1716252673151,-500.0,0.00039178,6]
[327613948,1716252673160,-621.78,0.00039178,6]
[327613949,1716252673172,-2070.76,0.00039178,6]
[327613950,1716252673181,-500.0,0.00039178,6]
[327613951,1716252673191,-500.0,0.00039178,6]
[327613952,1716252673201,-500.0,0.00039178,6]
[327613953,1716252673210,-802.27,0.00039178,6]
[327613954,1716252673220,-1057.01,0.00039178,6]
[327613955,1716252673229,-1532.63,0.00039178,6]
[327613956,1716252673239,-1349.61,0.00039178,6]
[327613957,1716252673248,-673.01,0.00039178,6]
[327613958,1716252673258,-996.73,0.00039178,6]
[327613959,1716252673267,-500.0,0.00039178,6]
[327613960,1716252673277,-752.59,0.00039178,6]
[327613961,1716252673286,-500.0,0.00039178,6]
[327613962,1716252673295,-1569.8,0.00039178,6]
[327613963,1716252673306,-815.42,0.00039178,6]
[327613964,1716252673319,-691.07,0.00039178,6]
[327613965,1716252673328,-865.8,0.00039178,6]
[327613966,1716252673338,-1918.89,0.00039178,6]
[327613967,1716252673347,-643.68,0.00039178,6]
[327613968,1716252673357,-871.17,0.00039178,6]
[327613969,1716252673367,-1259.23,0.00039178,6]
[327613970,1716252673376,-500.0,0.00039178,6]
[327613971,1716252673385,-500.0,0.00039178,6]
[327613972,1716252673395,-500.0,0.00039178,6]
[327613973,1716252673405,-895.51,0.00039178,6]
[327613974,1716252673416,-500.0,0.00039178,2]
[327613975,1716252673425,-500.0,0.00039178,6]
[327613976,1716252673435,-525.44,0.00039178,6]
[327613977,1716252673445,-1110.64,0.00039178,6]
[327613978,1716252673454,-1820.42,0.00039178,6]
[327613979,1716252673465,-569.09,0.00039178,6]
[327613980,1716252673476,-592.38,0.00039178,6]
[327613981,1716252673486,-504.03,0.00039178,6]
[327613982,1716252673497,-500.0,0.00039178,6]
[327613983,1716252673507,-500.0,0.00039178,6]
[327613984,1716252673517,-500.0,0.00039178,6]
[327613985,1716252673527,-728.93,0.00039178,6]
[327613986,1716252673537,-733.7,0.00039178,6]
[327613987,1716252673547,-951.45,0.00039178,6]
[327613988,1716252673557,-1064.85,0.00039178,6]
[327613989,1716252673568,-763.8,0.00039178,6]
[327613990,1716252673577,-721.63,0.00039178,6]
[327613991,1716252673587,-1003.99,0.00039178,6]
[327613992,1716252673597,-500.0,0.00039178,6]
[327613993,1716252673606,-500.0,0.00039178,6]
[327613994,1716252673615,-736.5,0.00039178,6]
[327613995,1716252673625,-620.35,0.00039178,6]
[327613996,1716252673634,-500.0,0.00039178,6]
[327613997,1716252673644,-1162.92,0.00039178,6]
[327613998,1716252673653,-767.98,0.00039178,6]
[327613999,1716252673665,-500.0,0.00039178,6]
[327614000,1716252673675,-925.12,0.00039178,6]
[327614001,1716252673684,-500.0,0.00039178,6]
[327614002,1716252673694,-500.0,0.00039178,6]
[327614003,1716252673704,-500.0,0.00039178,6]
[327614004,1716252673714,-500.0,0.00039178,6]
[327614005,1716252673723,-551.65,0.00039178,6]
[327614006,1716252673733,-1113.27,0.00039178,6]
[327614007,1716252673743,-770.96,0.00039178,6]
[327614008,1716252673752,-500.0,0.00039178,6]
[327614009,1716252673762,-680.58,0.00039178,6]
[327614010,1716252673771,-1050.82,0.00039178,6]
[327614011,1716252673781,-500.0,0.00039178,6]
[327614012,1716252673790,-506.14,0.00039178,2]
[327614013,1716252673800,-500.0,0.00039178,6]
[327614014,1716252673810,-1562.1,0.00039178,6]
[327614015,1716252673820,-500.0,0.00039178,6]
[327614016,1716252673830,-500.0,0.00039178,6]
[327614017,1716252673842,-868.51,0.00039178,6]
[327614018,1716252673852,-628.51,0.00039178,6]
[327614019,1716252673863,-500.0,0.00039178,6]
[327614020,1716252673872,-1136.5,0.00039178,6]
[327614021,1716252673882,-500.0,0.00039178,6]
[327614022,1716252673892,-500.0,0.00039178,6]
[327614023,1716252673902,-973.11,0.00039178,6]
[327614024,1716252673913,-1868.38,0.00039178,6]
[327614025,1716252673924,-500.0,0.00039178,6]
[327614026,1716252673935,-1164.11,0.00039178,6]
[327614027,1716252673945,-1137.65,0.00039178,6]
[327614028,1716252673955,-500.0,0.00039178,6]
[327614029,1716252673965,-1173.27,0.00039178,6]
[327614030,1716252673975,-544.17,0.00039178,6]
[327614031,1716252673985,-500.0,0.00039178,6]
[327614032,1716252673995,-627.97,0.00039178,6]
[327614033,1716252674005,-771.01,0.00039178,6]
[327614034,1716252674014,-941.43,0.00039178,6]
[327614035,1716252674025,-641.1,0.00039178,6]
[327614036,1716252674035,-554.86,0.00039178,6]
[327614037,1716252674044,-1506.6,0.00039178,6]
[327614038,1716252674054,-1778.47,0.00039178,6]
[327614039,1716252674064,-1131.35,0.00039178,6]
[327614040,1716252674073,-760.1,0.00039178,6]
[327614041,1716252674083,-880.92,0.00039178,6]
[327614042,1716252674092,-668.74,0.00039178,6]
[327614043,1716252674103,-500.0,0.00039178,6]
[327614044,1716252674112,-2367.93,0.00039178,6]
[327614045,1716252674122,-2736.76,0.00039178,6]
[327614046,1716252674131,-1173.02,0.00039178,6]
[327614047,1716252674143,-1316.63,0.00039178,6]
[327614048,1716252674153,-500.0,0.00039178,6]
[327614049,1716252674166,-726.56,0.00039178,6]
[327614050,1716252674176,-500.0,0.00039178,6]
[327614051,1716252674185,-1846.7,0.00039178,6]
[327614052,1716252674194,-739.03,0.00039178,6]
[327614053,1716252674204,-1157.34,0.00039178,6]
[327614054,1716252674214,-500.0,0.00039178,6]
[327614055,1716252674223,-1208.53,0.00039178,6]
[327614056,1716252674233,-1627.45,0.00039178,6]
[327614057,1716252674243,-670.28,0.00039178,6]
[327614058,1716252674254,-500.0,0.00039178,6]
[327614059,1716252674264,-500.0,0.00039178,6]
[327614060,1716252674273,-500.0,0.00039178,6]
[327614061,1716252674283,-513.96,0.00039178,6]
[327614062,1716252674292,-500.0,0.00039178,6]
[327614063,1716252674303,-500.0,0.00039178,6]
[327614064,1716252674313,-1035.78,0.00039178,6]
[327614065,1716252674322,-2230.16,0.00039178,6]
[327614066,1716252674335,-811.3,0.00039178,6]
[327614067,1716252674345,-500.0,0.00039178,6]
[327614068,1716252674354,-1337.87,0.00039178,6]
[327614069,1716252674364,-500.0,0.00039178,6]
[327614070,1716252674373,-649.65,0.00039178,6]
[327614071,1716252674382,-1141.28,0.00039178,6]
[327614072,1716252674392,-500.0,0.00039178,6]
[327614073,1716252674402,-500.0,0.00039178,6]
[327614074,1716252674412,-500.0,0.00039178,6]
[327614075,1716252674424,-500.0,0.00039178,6]
[327614076,1716252674433,-1128.76,0.00039178,6]
[327614077,1716252674443,-500.0,0.00039178,6]
[327614078,1716252674452,-2174.21,0.00039178,6]
[327614079,1716252674463,-808.03,0.00039178,6]
[327614080,1716252674472,-556.14,0.00039178,6]
[327614081,1716252674482,-500.0,0.00039178,6]
[327614082,1716252674491,-712.07,0.00039178,6]
[327614083,1716252674500,-1704.14,0.00039178,6]
[327614084,1716252674509,-500.0,0.00039178,6]
[327614085,1716252674519,-500.0,0.00039178,6]
[327614086,1716252674529,-500.0,0.00039178,6]
[327614087,1716252674537,-731.82,0.00039178,6]
[327614088,1716252674547,-1015.29,0.00039178,6]
[327614089,1716252674557,-895.68,0.00039178,6]
[327614090,1716252674566,-586.1,0.00039178,6]
[327614091,1716252674575,-500.0,0.00039178,6]
[327614092,1716252674585,-500.0,0.00039178,6]
[327614093,1716252674594,-957.34,0.00039178,6]
[327614094,1716252674603,-13179.3,0.00039178,6]
[327614095,1716252674613,-1123.34,0.00039178,6]
[327614096,1716252674623,-500.0,0.00039178,6]
[327614097,1716252674632,-749.52,0.00039178,6]
[327614098,1716252674643,-798.64,0.00039178,6]
[327614099,1716252674653,-1432.7,0.00039178,6]
[327614100,1716252674663,-954.51,0.00039178,6]
[327614101,1716252674674,-244.72090364,0.00039178,6]
[327614102,1716252674683,-1127.68,0.00039178,6]
[327614103,1716252674693,-500.0,0.00039178,6]
[327614104,1716252674702,-500.0,0.00039178,6]
[327614105,1716252674712,-432.53205985,0.00039178,6]
[327614106,1716252674722,-500.0,0.00039178,6]
[327614107,1716252674732,-589.23,0.00039178,6]
[327614108,1716252674742,-711.92,0.00039178,6]
[327614109,1716252674751,-543.0,0.00039178,6]
[327614110,1716252674761,-675.29,0.00039178,6]
[327614111,1716252674771,-500.0,0.00039178,6]
[327614112,1716252674780,-500.0,0.00039178,6]
[327614113,1716252674789,-500.0,0.00039178,6]
[327614114,1716252674799,-1119.42,0.00039178,6]
[327614115,1716252674809,-500.0,0.00039178,6]
[327614116,1716252674818,-1644.84,0.00039178,6]
[327614117,1716252674828,-2031.55,0.00039178,6]
[327614118,1716252674837,-500.0,0.00039178,6]
[327614119,1716252674846,-500.0,0.00039178,6]
[327614120,1716252674856,-887.07,0.00039178,6]
[327614121,1716252674866,-753.3,0.00039178,6]
[327614122,1716252674875,-1130.53,0.00039178,6]
[327614123,1716252674885,-500.0,0.00039178,6]
[327614124,1716252674896,-500.0,0.00039178,6]
[327614125,1716252674905,-1394.63,0.00039178,6]
[327614126,1716252674915,-1440.18,0.00039178,6]
[327614127,1716252674926,-770.49,0.00039178,6]
[327614128,1716252674935,-500.0,0.00039178,6]
[327614129,1716252674945,-500.0,0.00039178,6]
[327614130,1716252674954,-500.0,0.00039178,6]
[327614131,1716252674963,-1137.41,0.00039178,6]
[327614132,1716252674973,-1332.86,0.00039178,6]
[327614133,1716252674982,-500.0,0.00039178,6]
[327614134,1716252674991,-602.66,0.00039178,6]
[327614135,1716252675000,-500.0,0.00039178,6]
[327614136,1716252675011,-574.94,0.00039178,6]
[327614137,1716252675020,-500.0,0.00039178,6]
[327614138,1716252675029,-500.0,0.00039178,6]
[327614139,1716252675038,-500.0,0.00039178,6]
[327614140,1716252675048,-500.0,0.00039178,6]
[327614141,1716252675057,-722.78,0.00039178,6]
[327614142,1716252675066,-2091.96,0.00039178,6]
[327614143,1716252675075,-500.0,0.00039178,6]
[327614144,1716252675085,-504.71,0.00039178,6]
[327614145,1716252675094,-646.75,0.00039178,6]
[327614146,1716252675103,-500.0,0.00039178,6]
[327614147,1716252675113,-944.32,0.00039178,6]
[327614148,1716252675122,-13981.79,0.00039178,6]
[327614149,1716252675131,-739.69,0.00039178,6]
[327614150,1716252675140,-500.0,0.00039178,6]
[327614151,1716252675150,-500.0,0.00039178,6]
[327614152,1716252675159,-923.68,0.00039178,6]